bitfinex/quotes_BTCUSD_20250131
["timestamp","ask_amount","ask_price","bid_price","bid_amount"]
[1738283763628,8.26e-05,104840.0,104830.0,2.34876195]
[1738283764435,8.26e-05,104840.0,104830.0,2.01576195]
[1738283764774,0.00382132,104840.0,104830.0,2.01576195]
[1738283764986,0.00382132,104840.0,104830.0,3.51576195]
[1738283765459,0.0787826,104840.0,104830.0,1.47000195]
[1738283765643,0.0787826,104840.0,104830.0,1.62636195]
[1738283765815,0.0787826,104840.0,104830.0,1.47636195]
[1738283766425,0.08252132,104840.0,104830.0,1.62636195]
[1738283766646,0.08252132,104840.0,104830.0,1.62661794]
[1738283767053,0.08252132,104840.0,104830.0,1.43764449]
[1738283767256,0.12962132,104840.0,104830.0,0.96571857]
[1738283767657,0.12962132,104840.0,104830.0,1.44400449]
[1738283770837,0.12962132,104840.0,104830.0,1.11500449]
[1738283772543,0.11962132,104840.0,104830.0,1.11500449]
[1738283772770,0.11962132,104840.0,104830.0,1.11496449]
[1738283775221,0.11962132,104840.0,104830.0,1.21220765]
[1738283775425,0.0001219,104850.0,104840.0,0.143075]
[1738283775625,0.0001219,104850.0,104840.0,0.24127179]
[1738283775852,0.0001219,104850.0,104840.0,0.24031816]
[1738283776571,0.0001219,104850.0,104840.0,0.47003118]
[1738283776753,0.0001219,104850.0,104840.0,0.47017629]
[1738283777192,0.0001219,104850.0,104840.0,0.47117629]
[1738283777632,0.0001219,104850.0,104840.0,0.47617629]
[1738283778986,0.0001219,104850.0,104840.0,0.70387629]
[1738283781535,0.0001219,104850.0,104840.0,0.71440875]
[1738283782428,0.0001219,104850.0,104840.0,0.7331594]
[1738283782597,0.0001219,104850.0,104840.0,1.6015594]
[1738283782797,0.0001219,104850.0,104840.0,2.0829594]
[1738283783003,9e-07,104850.0,104840.0,2.2465254]
[1738283783234,9e-07,104850.0,104840.0,2.1029594]
[1738283783435,9e-07,104850.0,104840.0,2.11248692]
[1738283783785,9e-07,104850.0,104840.0,2.11148692]
[1738283783983,9e-07,104850.0,104840.0,2.19185721]
[1738283784184,9e-07,104850.0,104840.0,2.19385721]
[1738283784388,9e-07,104850.0,104840.0,3.69385721]
[1738283784605,9e-07,104850.0,104840.0,3.69985721]
[1738283785040,9e-07,104850.0,104840.0,3.70185721]
[1738283786116,9e-07,104850.0,104840.0,2.20185721]
[1738283786724,9e-07,104850.0,104840.0,2.18185721]
[1738283787643,9e-07,104850.0,104840.0,2.09648692]
[1738283789267,9e-07,104850.0,104840.0,2.10280692]
[1738283789443,9e-07,104850.0,104840.0,2.10306291]
[1738283790992,9e-07,104850.0,104840.0,2.09306291]
[1738283791128,9e-07,104850.0,104840.0,2.10306291]
[1738283791330,9e-07,104850.0,104840.0,2.09674291]
[1738283791556,9e-07,104850.0,104840.0,1.97696291]
[1738283795365,9e-07,104850.0,104840.0,1.53764291]
[1738283795565,0.1320009,104850.0,104840.0,1.38764291]
[1738283795774,0.13556186,104850.0,104840.0,1.39396291]
[1738283796178,0.1320009,104850.0,104840.0,1.54396291]
[1738283796380,0.13555284,104850.0,104840.0,1.52521226]
[1738283797965,0.13555284,104850.0,104840.0,0.98581226]
[1738283798107,0.13555284,104850.0,104840.0,0.9752798]
[1738283802723,0.13555284,104850.0,104840.0,0.36300362]
[1738283802970,0.13544602,104850.0,104840.0,0.36932362]
[1738283803718,0.13544602,104850.0,104840.0,0.36732362]
[1738283804031,0.13544602,104850.0,104840.0,0.36832362]
[1738283804444,0.13544602,104850.0,104840.0,0.39699092]
[1738283804950,0.13544602,104850.0,104840.0,0.48623408]
[1738283804951,0.08605194,104850.0,104840.0,0.48623408]
[1738283805129,0.00355194,104850.0,104840.0,0.63623408]
[1738283805332,0.00355194,104850.0,104840.0,0.64123408]
[1738283805514,0.077,104860.0,104850.0,0.143061]
[1738283805718,0.077,104860.0,104850.0,0.24030416]
[1738283805927,0.08053146,104860.0,104850.0,0.24662416]
[1738283806527,0.08053146,104860.0,104850.0,0.44662416]
[1738283806736,0.077,104860.0,104850.0,0.92491008]
[1738283806940,0.08053146,104860.0,104850.0,0.92491008]
[1738283807585,0.08053146,104860.0,104850.0,0.95458821]
[1738283807923,0.08053146,104860.0,104850.0,0.95558821]
[1738283808487,0.08053146,104860.0,104850.0,0.96058821]
[1738283811883,0.08053146,104860.0,104850.0,0.93091008]
[1738283812091,0.08053146,104860.0,104850.0,0.96060892]
[1738283813030,0.08053146,104860.0,104850.0,0.97110428]
[1738283813829,0.08053146,104860.0,104850.0,0.97136027]
[1738283814129,0.08065336,104860.0,104850.0,0.97136027]
[1738283814332,0.08404316,104860.0,104850.0,0.97136027]
[1738283818664,0.08404316,104860.0,104850.0,0.97132027]
[1738283825219,0.00704316,104860.0,104850.0,0.97132027]
[1738283825435,0.00365336,104860.0,104850.0,1.12132027]
[1738283825853,0.00365336,104860.0,104850.0,2.62132027]
[1738283826061,0.00704426,104860.0,104850.0,2.62132027]
[1738283826273,0.00365336,104860.0,104850.0,2.62132027]
[1738283827939,0.00365336,104860.0,104850.0,2.61504027]
[1738283828143,0.08495336,104860.0,104850.0,0.96082491]
[1738283828317,0.13165336,104860.0,104850.0,0.96082491]
[1738283828560,0.13506145,104860.0,104850.0,0.96082491]
[1738283828765,0.13506145,104860.0,104850.0,0.95454491]
[1738283828973,0.27470036,104860.0,104850.0,0.23595483]
[1738283829190,0.27811032,104860.0,104850.0,0.69082191]
[1738283829407,0.27811032,104860.0,104850.0,0.91933049]
[1738283831149,0.27811032,104860.0,104850.0,0.29798357]
[1738283831356,0.27811032,104860.0,104850.0,0.29170357]
[1738283831567,0.37535348,104860.0,104850.0,0.29170357]
[1738283832618,0.37535348,104860.0,104850.0,0.09170357]
[1738283833465,0.37535348,104860.0,104850.0,0.00625599]
[1738283833896,0.67149048,104860.0,104850.0,0.00625599]
[1738283834029,0.76884724,104860.0,104850.0,0.00625599]
[1738283834235,0.64571024,104860.0,104850.0,0.00625599]
[1738283834447,0.54835348,104860.0,104850.0,0.00125599]
[1738283834708,0.416961,104850.0,104840.0,0.00241081]
[1738283835011,0.51420416,104850.0,104840.0,0.00241081]
[1738283835215,0.51757868,104850.0,104840.0,0.00241081]
[1738283836087,0.51757868,104850.0,104840.0,0.00541081]
[1738283841687,0.61493544,104850.0,104840.0,0.00541081]
[1738283844552,0.62511979,104850.0,104840.0,0.00541081]
[1738283846806,0.52776303,104850.0,104840.0,0.00541081]
[1738283847462,0.82703703,104850.0,104840.0,0.00325599]
[1738283847695,0.80703703,104850.0,104840.0,0.00325599]
[1738283848335,0.68390003,104850.0,104840.0,0.00025599]
[1738283848540,0.80903703,104850.0,104840.0,0.00025599]
[1738283848757,0.92492497,104850.0,104840.0,0.00025599]
[1738283849007,0.92304687,104850.0,104840.0,0.00025599]
[1738283849243,0.89451569,104850.0,104840.0,0.00025599]
[1738283849487,0.03,104840.0,104830.0,0.0001638]
[1738283849706,0.51994362,104840.0,104830.0,0.00031227]
[1738283849925,0.55364925,104840.0,104830.0,0.00031227]
[1738283850172,0.58209294,104840.0,104830.0,0.00031227]
[1738283850608,0.56209294,104840.0,104830.0,0.00031227]
[1738283850858,0.90329294,104840.0,104830.0,8.913e-05]
[1738283851368,0.90529294,104840.0,104830.0,8.913e-05]
[1738283851859,0.87684925,104840.0,104830.0,8.913e-05]
[1738283855221,1.02684925,104840.0,104830.0,8.913e-05]
[1738283856201,1.05538043,104840.0,104830.0,8.913e-05]
[1738283856483,1.03538043,104840.0,104830.0,8.913e-05]
[1738283856833,1.0540692,104840.0,104830.0,8.913e-05]
[1738283857033,1.0520692,104840.0,104830.0,8.913e-05]
[1738283857509,1.0540692,104840.0,104830.0,8.913e-05]
[1738283857925,1.0650692,104840.0,104830.0,8.913e-05]
[1738283858363,1.1685692,104840.0,104830.0,8.913e-05]
[1738283859096,1.14003802,104840.0,104830.0,8.913e-05]
[1738283859880,0.81883802,104840.0,104830.0,8.913e-05]
[1738283860421,0.78729191,104840.0,104830.0,8.913e-05]
[1738283860689,0.78729191,104840.0,104830.0,0.00021103]
[1738283861013,0.7875479,104840.0,104830.0,8.982e-05]
[1738283865614,0.5509109,104840.0,104830.0,8.982e-05]
[1738283865813,0.5409109,104840.0,104830.0,8.982e-05]
[1738283866166,0.5639109,104840.0,104830.0,8.982e-05]
[1738283866391,0.166088,104830.0,104820.0,0.00186269]
[1738283866739,0.26664002,104830.0,104820.0,0.0020115]
[1738283867601,0.26864002,104830.0,104820.0,0.0020115]
[1738283867799,0.32808385,104830.0,104820.0,0.0020115]
[1738283868579,0.28864002,104830.0,104820.0,0.0020115]
[1738283870581,0.26864002,104830.0,104820.0,0.0020115]
[1738283870772,0.28864002,104830.0,104820.0,0.0020115]
[1738283871390,0.48787702,104830.0,104820.0,0.00014881]
[1738283871598,0.54487702,104830.0,104820.0,0.00014881]
[1738283871812,0.83029678,104830.0,104820.0,0.00014881]
[1738283872426,0.83029678,104830.0,104820.0,0.00027071]
[1738283872637,0.83055277,104830.0,104820.0,0.00027071]
[1738283872842,0.84074535,104830.0,104820.0,0.00027071]
[1738283873263,0.96388235,104830.0,104820.0,0.00027071]
[1738283874421,0.293102,104820.0,104810.0,2.058e-05]
[1738283874625,0.49101082,104820.0,104810.0,0.00050131]
[1738283876428,0.51401082,104820.0,104810.0,0.00050131]
[1738283877021,0.51501082,104820.0,104810.0,0.00050131]
[1738283885117,0.143116,104810.0,104800.0,0.00186564]
[1738283885344,0.3908402,104810.0,104800.0,2.95e-06]
[1738283885506,0.44793131,104810.0,104800.0,2.95e-06]
[1738283885783,0.39414553,104810.0,104800.0,2.95e-06]
[1738283886164,0.58497153,104810.0,104790.0,0.48778756]
[1738283886602,0.39414553,104810.0,104800.0,0.003]
[1738283887739,0.42273738,104810.0,104800.0,0.003]
[1738283889624,0.39414553,104810.0,104800.0,0.003]
[1738283889828,0.49150229,104810.0,104800.0,0.00486269]
[1738283890606,0.39414553,104810.0,104800.0,0.00486269]
[1738283892168,0.15378637,104810.0,104800.0,0.22829169]
[1738283892340,0.15378637,104810.0,104800.0,0.27559169]
[1738283892552,0.15378637,104810.0,104800.0,0.47559169]
[1738283892946,0.00378637,104810.0,104800.0,0.47559169]
[1738283894851,0.00378637,104810.0,104800.0,0.50538224]
[1738283895398,0.00378637,104810.0,104800.0,0.47571359]
[1738283896006,0.14690237,104810.0,104800.0,0.33258459]
[1738283896443,0.14690237,104810.0,104800.0,0.13258459]
[1738283897682,0.14809083,104810.0,104800.0,0.05228459]
[1738283898069,0.24533399,104810.0,104800.0,0.00498459]
[1738283898282,0.24414553,104810.0,104800.0,0.00498459]
[1738283902119,0.39414553,104810.0,104800.0,0.00498459]
[1738283902334,0.143143,104790.0,104780.0,0.41314758]
[1738283902543,0.14433146,104790.0,104780.0,0.13274758]
[1738283902749,0.14761565,104790.0,104780.0,0.13274758]
[1738283902979,0.24367035,104790.0,104780.0,0.13274758]
[1738283903616,0.24367035,104790.0,104780.0,0.13474758]
[1738283904115,0.24367035,104790.0,104780.0,0.13274758]
[1738283904326,0.24467035,104790.0,104780.0,0.13274758]
[1738283904880,0.24467035,104790.0,104780.0,0.13874758]
[1738283905093,0.24467035,104790.0,104780.0,0.13274758]
[1738283905294,0.24467035,104790.0,104780.0,0.12878758]
[1738283906198,0.00428419,104790.0,104780.0,0.12878758]
[1738283906403,0.00428419,104790.0,104780.0,0.35064458]
[1738283906901,0.14742719,104790.0,104780.0,0.20748758]
[1738283907308,0.14742719,104790.0,104780.0,0.20760948]
[1738283907516,0.14742719,104790.0,104780.0,0.40760948]
[1738283907668,0.14742719,104790.0,104780.0,0.3261219]
[1738283908572,0.14742719,104790.0,104780.0,0.1261219]
[1738283918998,0.14742719,104790.0,104780.0,0.0474219]
[1738283919222,0.14768339,104790.0,104780.0,0.0474219]
[1738283920403,0.14768339,104790.0,104780.0,0.0001219]
[1738283921662,0.14768339,104790.0,104780.0,0.2001219]
[1738283921846,0.14768339,104790.0,104780.0,0.3432789]
[1738283922563,0.00454039,104790.0,104780.0,0.1432789]
[1738283926541,0.00454039,104790.0,104780.0,0.3432789]
[1738283926753,0.00454039,104790.0,104780.0,0.4252789]
[1738283928332,0.00454039,104790.0,104780.0,0.4714789]
[1738283928539,0.00454039,104790.0,104780.0,0.50123575]
[1738283929108,0.14768339,104790.0,104780.0,0.2001219]
[1738283929522,0.32921501,104790.0,104780.0,0.0001219]
[1738283929731,0.42538331,104790.0,104780.0,0.0001219]
[1738283933912,0.32802655,104790.0,104780.0,0.0001219]
[1738283934142,0.14768339,104790.0,104780.0,0.0001219]
[1738283934511,0.14768339,104790.0,104780.0,0.2001219]
[1738283936241,0.24492655,104790.0,104780.0,0.2001219]
[1738283936504,0.24492655,104790.0,104780.0,0.0001219]
[1738283937272,0.33958531,104790.0,104780.0,0.0001219]
[1738283938486,0.24492655,104790.0,104780.0,0.0001219]
[1738283938702,0.24492655,104790.0,104780.0,0.2001219]
[1738283939530,0.00454039,104790.0,104780.0,0.1432789]
[1738283940383,0.00454039,104790.0,104780.0,0.3887789]
[1738283943512,0.00454039,104790.0,104780.0,0.49876249]
[1738283948624,0.00454039,104790.0,104780.0,0.59600565]
[1738283949520,0.00354039,104790.0,104780.0,0.59600565]
[1738283950251,0.00354039,104790.0,104780.0,0.60232565]
[1738283951124,0.00354039,104790.0,104780.0,0.60532565]
[1738283953119,0.00354039,104790.0,104780.0,0.47330565]
[1738283953322,0.00354039,104790.0,104780.0,0.47962565]
[1738283954373,0.00354039,104790.0,104780.0,0.55732565]
[1738283954959,0.00354039,104790.0,104780.0,0.88632565]
[1738283961559,0.00354039,104790.0,104780.0,0.70506249]
[1738283961800,0.00354039,104790.0,104780.0,0.71138249]
[1738283962963,0.00354039,104790.0,104780.0,0.70506249]
[1738283963215,0.00354039,104790.0,104780.0,0.71138249]
[1738283965397,0.00354039,104790.0,104780.0,0.70506249]
[1738283965602,0.00354039,104790.0,104780.0,0.71138249]
[1738283966670,0.00354039,104790.0,104780.0,0.6815989]
[1738283966845,0.00354039,104790.0,104780.0,0.3525989]
[1738283971455,0.00314733,104790.0,104780.0,0.3525989]
[1738283972190,0.00314733,104790.0,104780.0,0.38235156]
[1738283976894,0.00314733,104790.0,104780.0,0.45895156]
[1738283977095,0.00314733,104790.0,104780.0,0.60209472]
[1738283978680,0.00314733,104790.0,104780.0,0.93109472]
[1738283979287,0.00314733,104790.0,104780.0,1.01673434]
[1738283982121,0.00314733,104790.0,104780.0,1.03551833]
[1738283982654,0.00314733,104790.0,104780.0,1.02919833]
[1738283982870,0.00314733,104790.0,104780.0,0.87947833]
[1738283983052,0.00314733,104790.0,104780.0,0.88947833]
[1738283983483,0.00314733,104790.0,104780.0,2.38947833]
[1738283984086,3.3e-07,104790.0,104780.0,2.48747833]
[1738283984291,0.0046898,104790.0,104780.0,2.48747833]
[1738283984521,3.3e-07,104790.0,104780.0,2.49347833]
[1738283984921,3.3e-07,104790.0,104780.0,0.99347833]
[1738283985122,3.3e-07,104790.0,104780.0,0.98347833]
[1738283985345,0.0046898,104790.0,104780.0,0.97719833]
[1738283985551,3.3e-07,104790.0,104780.0,2.49347833]
[1738283985827,3.3e-07,104790.0,104780.0,2.48719833]
[1738283986068,3.3e-07,104790.0,104780.0,2.49347833]
[1738283987271,3.3e-07,104790.0,104780.0,2.40155871]
[1738283987472,3.3e-07,104790.0,104780.0,2.40783871]
[1738283990892,3.3e-07,104790.0,104780.0,2.40155871]
[1738283991098,3.3e-07,104790.0,104780.0,2.40783871]
[1738283991295,3.3e-07,104790.0,104780.0,0.90783871]
[1738283991610,3.3e-07,104790.0,104780.0,2.40783871]
[1738283993051,3.3e-07,104790.0,104780.0,2.40155871]
[1738283993251,3.3e-07,104790.0,104780.0,2.40783871]
[1738283995401,3.3e-07,104790.0,104780.0,2.40155871]
[1738283995628,3.3e-07,104790.0,104780.0,2.40783871]
[1738283995836,3.3e-07,104790.0,104780.0,2.40183871]
[1738283996049,3.3e-07,104790.0,104780.0,2.41083871]
[1738283996402,3.3e-07,104790.0,104780.0,2.40983871]
[1738283996745,3.3e-07,104790.0,104780.0,2.41483871]
[1738284000879,3.3e-07,104790.0,104780.0,2.43483871]
[1738284002283,3.3e-07,104790.0,104780.0,2.41605472]
[1738284005649,3.3e-07,104790.0,104780.0,3.28445472]
[1738284006406,3.3e-07,104790.0,104780.0,1.78445472]
[1738284006917,3.3e-07,104790.0,104780.0,3.28445472]
[1738284008182,3.3e-07,104790.0,104780.0,3.33566132]
[1738284010681,3.3e-07,104790.0,104780.0,3.31566132]
[1738284010869,3.3e-07,104790.0,104780.0,3.33566132]
[1738284013033,3.3e-07,104790.0,104780.0,3.73566132]
[1738284013243,0.00073703,104810.0,104800.0,0.166129]
[1738284013442,0.00073703,104810.0,104800.0,0.74261199]
[1738284013672,0.00073703,104810.0,104800.0,0.77141074]
[1738284013824,0.00073703,104810.0,104800.0,2.27141074]
[1738284014437,0.00073703,104810.0,104800.0,2.27341074]
[1738284014638,0.00073703,104810.0,104800.0,2.47341074]
[1738284014840,0.13043703,104810.0,104800.0,0.95669074]
[1738284015049,0.13043703,104810.0,104800.0,0.96469074]
[1738284017009,0.13043703,104810.0,104800.0,1.0500179]
[1738284017425,0.13043703,104810.0,104800.0,1.3790179]
[1738284018251,0.13043703,104810.0,104800.0,1.38896032]
[1738284019368,0.13609565,104810.0,104800.0,1.38896032]
[1738284019572,0.13609565,104810.0,104800.0,2.88896032]
[1738284020835,0.08889565,104810.0,104800.0,2.88896032]
[1738284021460,0.08323703,104810.0,104800.0,2.88896032]
[1738284021678,0.08889565,104810.0,104800.0,2.88896032]
[1738284023362,0.08889565,104810.0,104800.0,2.55996032]
[1738284024173,0.08889565,104810.0,104800.0,2.55496032]
[1738284024815,0.08889565,104810.0,104800.0,2.46963316]
[1738284025195,0.08889565,104810.0,104800.0,2.46335316]
[1738284025401,0.08889565,104810.0,104800.0,2.46963316]
[1738284028097,0.00639565,104810.0,104800.0,2.46963316]
[1738284029458,0.00639565,104810.0,104800.0,2.79863316]
[1738284030131,0.01016806,104810.0,104800.0,1.42163316]
[1738284030548,0.00073703,104810.0,104800.0,1.42163316]
[1738284030760,0.01016806,104810.0,104800.0,2.92163316]
[1738284031191,0.00073703,104810.0,104800.0,2.92163316]
[1738284031811,0.00073703,104810.0,104800.0,2.97283976]
[1738284033776,0.00073703,104810.0,104800.0,2.96655976]
[1738284033956,0.00073703,104810.0,104800.0,2.97283976]
[1738284035118,0.00073703,104810.0,104800.0,2.64383976]
[1738284035359,0.00441796,104810.0,104800.0,2.64383976]
[1738284036206,0.00441796,104810.0,104800.0,1.14383976]
[1738284036624,0.00441796,104810.0,104800.0,2.63755976]
[1738284036827,0.00441796,104810.0,104800.0,2.64383976]
[1738284037581,0.00073703,104810.0,104800.0,2.59263316]
[1738284037786,0.00441796,104810.0,104800.0,2.59263316]
[1738284041080,0.00441796,104810.0,104800.0,3.46103316]
[1738284041286,0.00073703,104810.0,104800.0,3.46103316]
[1738284041927,0.00073703,104810.0,104800.0,3.51223976]
[1738284043867,0.00073703,104810.0,104800.0,3.03395384]
[1738284045313,0.00073703,104810.0,104800.0,3.03407574]
[1738284055327,0.07575599,104820.0,104810.0,0.173]
[1738284055546,0.07575599,104820.0,104810.0,0.92240002]
[1738284055757,0.07575599,104820.0,104810.0,0.92144613]
[1738284056418,0.00025599,104820.0,104810.0,0.92144613]
[1738284056632,0.00025599,104820.0,104810.0,1.12644613]
[1738284056798,0.00025599,104820.0,104810.0,2.62644613]
[1738284057591,0.00025599,104820.0,104810.0,2.62744613]
[1738284058061,0.00025599,104820.0,104810.0,3.49584613]
[1738284059517,0.00025599,104820.0,104810.0,3.59584613]
[1738284061385,0.00025599,104820.0,104810.0,3.64937255]
[1738284064897,0.00025599,104820.0,104810.0,2.78097255]
[1738284068622,0.00025599,104820.0,104810.0,2.78009445]
[1738284068823,0.00025599,104820.0,104810.0,2.78409445]
[1738284069282,9.9e-07,104820.0,104810.0,1.67219445]
[1738284069491,0.08265599,104840.0,104830.0,0.316088]
[1738284069719,0.08265599,104840.0,104830.0,0.92136974]
[1738284069871,0.08265599,104840.0,104830.0,2.42136974]
[1738284070475,0.08265599,104840.0,104830.0,2.62136974]
[1738284070888,0.08265599,104840.0,104830.0,2.60336974]
[1738284071439,0.08265599,104840.0,104830.0,1.10436974]
[1738284071860,0.08265599,104840.0,104830.0,1.11064974]
[1738284073013,9.9e-07,104840.0,104830.0,2.17174974]
[1738284073223,9.9e-07,104840.0,104830.0,2.26194974]
[1738284073668,9.9e-07,104840.0,104830.0,3.76194974]
[1738284074194,9.9e-07,104840.0,104830.0,3.75694974]
[1738284074506,9.9e-07,104840.0,104830.0,3.76494974]
[1738284074718,9.9e-07,104840.0,104830.0,3.76394974]
[1738284074922,9.9e-07,104840.0,104830.0,1.39554974]
[1738284075105,9.9e-07,104840.0,104830.0,1.45107616]
[1738284075307,9.9e-07,104840.0,104830.0,2.95107616]
[1738284075656,9.9e-07,104840.0,104830.0,2.96081376]
[1738284077227,9.9e-07,104840.0,104830.0,3.36081376]
[1738284080376,9.9e-07,104840.0,104830.0,1.86081376]
[1738284080818,8.289e-05,104850.0,104840.0,0.243075]
[1738284081153,8.289e-05,104850.0,104840.0,0.37007082]
[1738284081680,0.00538385,104850.0,104840.0,1.87007082]
[1738284081887,8.289e-05,104850.0,104840.0,1.87007082]
[1738284082290,8.289e-05,104850.0,104840.0,1.87107082]
[1738284082511,8.289e-05,104850.0,104840.0,2.07607082]
[1738284083492,8.9e-07,104850.0,104840.0,2.07607082]
[1738284084527,8.9e-07,104850.0,104840.0,2.07507082]
[1738284084732,8.9e-07,104850.0,104840.0,2.07807082]
[1738284085251,8.9e-07,104850.0,104840.0,2.07307082]
[1738284085661,8.9e-07,104850.0,104840.0,2.95047082]
[1738284092085,8.9e-07,104850.0,104840.0,2.95675082]
[1738284104134,0.00361425,104860.0,104850.0,0.543061]
[1738284104335,0.0001219,104860.0,104850.0,1.15834274]
[1738284104562,0.0001219,104860.0,104850.0,1.14834274]
[1738284104699,0.0001219,104860.0,104850.0,2.65834274]
[1738284105320,0.0001219,104860.0,104850.0,2.65839113]
[1738284105530,0.0001219,104860.0,104850.0,2.85839113]
[1738284105774,0.0001219,104860.0,104850.0,2.86639113]
[1738284106199,0.0001219,104860.0,104850.0,2.85639113]
[1738284106442,0.0001219,104860.0,104850.0,2.86467113]
[1738284106839,0.0001219,104860.0,104850.0,2.85839113]
[1738284107050,0.0754219,104860.0,104850.0,1.36467113]
[1738284107215,0.0754219,104860.0,104850.0,1.38567113]
[1738284107457,0.08074911,104860.0,104850.0,2.87767113]
[1738284107666,0.0754219,104860.0,104850.0,2.88067113]
[1738284107896,0.0754219,104860.0,104850.0,2.88967113]
[1738284109505,0.0754219,104860.0,104850.0,3.75807113]
[1738284110263,0.0001219,104860.0,104850.0,3.75807113]
[1738284110883,0.0001219,104860.0,104850.0,3.76788053]
[1738284112096,0.0001219,104860.0,104850.0,3.76160053]
[1738284112306,0.0001219,104860.0,104850.0,3.76788053]
[1738284117671,0.0001219,104860.0,104850.0,3.76813631]
[1738284123898,0.1262219,104860.0,104850.0,1.83885631]
[1738284124115,0.1262219,104860.0,104850.0,1.84513631]
[1738284124992,0.1262219,104860.0,104850.0,1.86813631]
[1738284125170,0.0001219,104860.0,104850.0,2.27813631]
[1738284125331,0.0001219,104860.0,104850.0,2.42185631]
[1738284125729,0.0001219,104860.0,104850.0,3.92813631]
[1738284127284,9e-07,104860.0,104850.0,3.92813631]
[1738284130279,8e-07,104870.0,104860.0,0.293047]
[1738284130516,8e-07,104870.0,104860.0,0.42004282]
[1738284130923,8e-07,104870.0,104860.0,1.92004282]
[1738284131121,8e-07,104870.0,104860.0,2.81144282]
[1738284131324,8e-07,104870.0,104860.0,3.22944282]
[1738284131536,8e-07,104870.0,104860.0,3.35464282]
[1738284132556,8e-07,104870.0,104860.0,3.55464282]
[1738284132737,8e-07,104870.0,104860.0,3.22564282]
[1738284133513,0.0783008,104870.0,104860.0,2.94244282]
[1738284133698,8e-07,104870.0,104860.0,1.34772282]
[1738284133908,8e-07,104870.0,104860.0,1.50172282]
[1738284134507,8e-07,104870.0,104860.0,1.49544282]
[1738284134738,8e-07,104870.0,104860.0,0.96232282]
[1738284135185,0.00538096,104870.0,104860.0,0.96232282]
[1738284135502,8e-07,104870.0,104860.0,0.95604282]
[1738284135715,0.0783008,104870.0,104860.0,0.63932282]
[1738284136149,0.08367872,104870.0,104860.0,1.17872282]
[1738284136348,0.12947872,104870.0,104860.0,1.02244282]
[1738284136587,0.1241008,104870.0,104860.0,0.38579966]
[1738284136798,0.12947872,104870.0,104860.0,0.38807966]
[1738284137223,0.12947872,104870.0,104860.0,0.39107966]
[1738284137432,0.12947872,104870.0,104860.0,0.53207966]
[1738284137635,0.12947872,104870.0,104860.0,0.52579966]
[1738284137855,0.12947872,104870.0,104860.0,0.53807966]
[1738284138061,0.12947872,104870.0,104860.0,0.54007966]
[1738284138459,0.12947872,104870.0,104860.0,0.54807966]
[1738284138904,0.12947872,104870.0,104860.0,0.39179966]
[1738284139117,0.12947872,104870.0,104860.0,0.38107966]
[1738284139342,0.12947872,104870.0,104860.0,0.351327]
[1738284139991,0.12947872,104870.0,104860.0,0.47821564]
[1738284140539,0.05727872,104870.0,104860.0,0.63121564]
[1738284140737,0.05727872,104870.0,104860.0,0.63221564]
[1738284140943,0.05727872,104870.0,104860.0,0.63247142]
[1738284141170,0.05740052,104870.0,104860.0,0.71790522]
[1738284141566,0.00549972,104870.0,104860.0,1.25730522]
[1738284141982,0.0001218,104870.0,104860.0,1.28030522]
[1738284142165,0.0001218,104870.0,104860.0,1.27930522]
[1738284142366,0.0001218,104870.0,104860.0,1.27630522]
[1738284142900,0.0001218,104870.0,104860.0,2.77630522]
[1738284143103,0.0001218,104870.0,104860.0,1.27630522]
[1738284143678,0.0001218,104870.0,104860.0,1.28330522]
[1738284143894,0.0001218,104870.0,104860.0,1.26030522]
[1738284144282,0.0001218,104870.0,104860.0,1.17787142]
[1738284145371,0.0001218,104870.0,104860.0,0.63847142]
[1738284145783,0.00545804,104870.0,104860.0,0.63847142]
[1738284148762,0.0001218,104870.0,104860.0,0.63847142]
[1738284150780,0.00547265,104870.0,104860.0,0.63847142]
[1738284151206,0.0001218,104870.0,104860.0,1.17787142]
[1738284154217,0.00547265,104870.0,104860.0,1.17787142]
[1738284154853,0.0001218,104870.0,104860.0,1.17787142]
[1738284158081,0.00547108,104870.0,104860.0,1.17787142]
[1738284158384,0.0001218,104870.0,104860.0,1.17787142]
[1738284159183,0.0001218,104870.0,104860.0,1.19704567]
[1738284160998,0.00547108,104870.0,104860.0,1.19704567]
[1738284161563,0.0001218,104870.0,104860.0,1.19704567]
[1738284164802,0.00547108,104870.0,104860.0,1.19704567]
[1738284165005,0.05087108,104870.0,104860.0,1.19076567]
[1738284165219,0.13057108,104870.0,104860.0,1.19076567]
[1738284165414,0.13057108,104870.0,104860.0,1.19704567]
[1738284165619,0.13057108,104870.0,104860.0,1.19076567]
[1738284165826,0.13057108,104870.0,104860.0,0.93062826]
[1738284166537,0.13057108,104870.0,104860.0,1.08062826]
[1738284167024,0.13057108,104870.0,104860.0,1.06862826]
[1738284167279,0.13057108,104870.0,104860.0,0.92462826]
[1738284169089,0.13057108,104870.0,104860.0,0.38522826]
[1738284174715,0.12557108,104870.0,104860.0,0.38522826]
[1738284174894,0.13010539,104870.0,104860.0,0.38522826]
[1738284175651,0.13022729,104870.0,104860.0,0.38522826]
[1738284186266,0.13221969,104870.0,104860.0,0.47053278]
[1738284192506,0.13221969,104870.0,104860.0,0.46425278]
[1738284192717,0.45266513,104870.0,104860.0,0.32120578]
[1738284192937,0.48566513,104870.0,104860.0,0.2915603]
[1738284193146,0.72302189,104870.0,104860.0,0.2915603]
[1738284193355,0.72302189,104870.0,104860.0,0.2415603]
[1738284193562,0.72302189,104870.0,104860.0,0.0865603]
[1738284193770,0.72302189,104870.0,104860.0,0.0855603]
[1738284194001,0.72302189,104870.0,104860.0,0.0405603]
[1738284194650,0.78514566,104870.0,104860.0,0.0405603]
[1738284194879,0.78514566,104870.0,104860.0,0.0355603]
[1738284198648,0.78514566,104870.0,104860.0,0.0001219]
[1738284199435,0.80449398,104870.0,104860.0,0.0001219]
[1738284203391,0.90489398,104870.0,104860.0,0.0001219]
[1738284203593,0.80449398,104870.0,104860.0,0.0001219]
[1738284205644,0.68220193,104870.0,104860.0,0.0001219]
[1738284207302,0.54184517,104870.0,104860.0,0.0001219]
[1738284207505,0.10436285,104870.0,104860.0,0.1431689]
[1738284207735,0.00711969,104870.0,104860.0,0.3431689]
[1738284209101,0.15015369,104870.0,104860.0,0.3431689]
[1738284209392,0.24739685,104870.0,104860.0,0.2001219]
[1738284209599,0.24739685,104870.0,104860.0,0.0001219]
[1738284213210,0.00711969,104870.0,104860.0,0.1431689]
[1738284214044,0.15015369,104870.0,104860.0,0.1431689]
[1738284217791,0.30353591,104870.0,104860.0,0.0001219]
[1738284218400,0.24739685,104870.0,104860.0,0.0001219]
[1738284218630,0.24739685,104870.0,104860.0,0.1431689]
[1738284218779,0.24739685,104870.0,104860.0,0.0001219]
[1738284219693,0.24739685,104870.0,104860.0,0.1431689]
[1738284220089,0.24739685,104870.0,104860.0,0.0001219]
[1738284221588,0.24739685,104870.0,104860.0,0.2001219]
[1738284222583,0.24739685,104870.0,104860.0,0.0001219]
[1738284223542,0.24739685,104870.0,104860.0,0.2001219]
[1738284224490,0.00711969,104870.0,104860.0,0.3431689]
[1738284224701,0.01162147,104870.0,104860.0,0.3431689]
[1738284225311,0.15584393,104870.0,104860.0,0.2001219]
[1738284225510,0.15465547,104870.0,104860.0,0.1431689]
[1738284225719,0.01162147,104870.0,104860.0,0.1431689]
[1738284226520,0.01162147,104870.0,104860.0,0.3431689]